[Event "Early-Titled-Tuesday-Blitz-March-05-2024"]
[Site "Chess.com"]
[Date "2024.03.05"]
[Round "8"]
[White "TheAlienParty"]
[Black "FMStan15"]
[Result "1-0"]
[WhiteElo "2392"]
[BlackElo "2099"]
[TimeControl "180+1"]
[EndTime "9:28:44 PST"]
[Termination "TheAlienParty won by resignation"]

1. c4 {[%clk 0:02:58.5]} 1... Nf6 {[%clk 0:02:52.7]} 2. Nf3 {[%clk 0:02:57.2]}
2... g6 {[%clk 0:02:50.7]} 3. b3 {[%clk 0:02:56.2]} 3... Bg7 {[%clk 0:02:45.5]}
4. Bb2 {[%clk 0:02:56.1]} 4... d6 {[%clk 0:02:45.8]} 5. g3 {[%clk 0:02:54.4]}
5... e5 {[%clk 0:02:46]} 6. Bg2 {[%clk 0:02:54.2]} 6... O-O {[%clk 0:02:45.9]}
7. d3 {[%clk 0:02:54.2]} 7... Nh5 {[%clk 0:02:45.6]} 8. Qc2 {[%clk 0:02:52.4]}
8... Nc6 {[%clk 0:02:44.1]} 9. a3 {[%clk 0:02:51.1]} 9... f5 {[%clk 0:02:43.4]}
10. O-O {[%clk 0:02:49.3]} 10... Be6 {[%clk 0:02:37.3]} 11. Nc3 {[%clk
0:02:47.3]} 11... Nd4 {[%clk 0:02:31.5]} 12. Nxd4 {[%clk 0:02:45.5]} 12... exd4
{[%clk 0:02:31.7]} 13. Nd5 {[%clk 0:02:42.3]} 13... c6 {[%clk 0:02:29]} 14. Nf4
{[%clk 0:02:34.7]} 14... Nxf4 {[%clk 0:02:27.9]} 15. gxf4 {[%clk 0:02:34.6]}
15... Qh4 {[%clk 0:02:24.9]} 16. e3 {[%clk 0:02:32.7]} 16... dxe3 {[%clk
0:02:13.5]} 17. fxe3 {[%clk 0:02:32.2]} 17... Bxb2 {[%clk 0:02:10]} 18. Qxb2
{[%clk 0:02:31.8]} 18... Rae8 {[%clk 0:02:06.8]} 19. Qf2 {[%clk 0:02:31.2]}
19... Qxf2+ {[%clk 0:02:04]} 20. Kxf2 {[%clk 0:02:30.8]} 20... Bd7 {[%clk
0:02:02.3]} 21. b4 {[%clk 0:02:28.4]} 21... Re7 {[%clk 0:02:01.8]} 22. Rfe1
{[%clk 0:02:27.9]} 22... b6 {[%clk 0:01:58.6]} 23. a4 {[%clk 0:02:23.1]} 23...
Rc8 {[%clk 0:01:43.8]} 24. a5 {[%clk 0:02:21.5]} 24... Be6 {[%clk 0:01:38.8]}
25. axb6 {[%clk 0:02:17.6]} 25... axb6 {[%clk 0:01:38.9]} 26. Ra6 {[%clk
0:02:17.4]} 26... Rb7 {[%clk 0:01:36.8]} 27. b5 {[%clk 0:02:13.6]} 27... Bd7
{[%clk 0:01:17]} 28. Rb1 {[%clk 0:02:12.8]} 28... Kg7 {[%clk 0:00:49]} 29. Bf3
{[%clk 0:02:04.8]} 29... Kf6 {[%clk 0:00:46.9]} 30. bxc6 {[%clk 0:02:04.4]}
30... Bxc6 {[%clk 0:00:45.9]} 31. Rbxb6 {[%clk 0:02:03.9]} 31... Rxb6 {[%clk
0:00:42.2]} 32. Rxb6 {[%clk 0:02:02.5]} 32... Bxf3 {[%clk 0:00:42.2]} 33. Kxf3
{[%clk 0:02:02.2]} 33... Rd8 {[%clk 0:00:36.3]} 34. c5 {[%clk 0:01:57]} 34...
Ke6 {[%clk 0:00:27.3]} 35. e4 {[%clk 0:01:46]} 35... fxe4+ {[%clk 0:00:07.9]}
36. Kxe4 {[%clk 0:01:44.4]} 36... Rb8 {[%clk 0:00:04.9]} 37. Rxb8 {[%clk
0:01:40.9]} 1-0

[Event "Early-Titled-Tuesday-Blitz-March-05-2024"]
[Site "Chess.com"]
[Date "2024.03.05"]
[Round "8"]
[White "Happy1712Drummer"]
[Black "viktorgen2021"]
[Result "0-1"]
[WhiteElo "2306"]
[BlackElo "2493"]
[TimeControl "180+1"]
[EndTime "9:28:48 PST"]
[Termination "viktorgen2021 won by checkmate"]

1. e4 {[%clk 0:03:00.9]} 1... g6 {[%clk 0:02:55.5]} 2. d4 {[%clk 0:03:00.5]}
2... Bg7 {[%clk 0:02:54.7]} 3. Nc3 {[%clk 0:03:00.6]} 3... d6 {[%clk 0:02:55]}
4. Nf3 {[%clk 0:03:00.5]} 4... Nf6 {[%clk 0:02:54.7]} 5. Be3 {[%clk 0:03:00.7]}
5... c6 {[%clk 0:02:54.4]} 6. Qd2 {[%clk 0:03:00.1]} 6... Nbd7 {[%clk 0:02:54]}
7. O-O-O {[%clk 0:02:45.7]} 7... O-O {[%clk 0:02:52.9]} 8. a4 {[%clk 0:02:43.1]}
8... Qa5 {[%clk 0:02:44.9]} 9. h4 {[%clk 0:02:24.4]} 9... h5 {[%clk 0:02:43.2]}
10. Bd3 {[%clk 0:02:16.3]} 10... a6 {[%clk 0:02:35]} 11. Bg5 {[%clk 0:01:55.9]}
11... e5 {[%clk 0:02:30.1]} 12. dxe5 {[%clk 0:01:51]} 12... Nxe5 {[%clk
0:02:28.7]} 13. Nxe5 {[%clk 0:01:47.5]} 13... dxe5 {[%clk 0:02:26.5]} 14. Bh6
{[%clk 0:01:12.5]} 14... Be6 {[%clk 0:02:24.1]} 15. Bxg7 {[%clk 0:01:10.3]}
15... Kxg7 {[%clk 0:02:22.3]} 16. f4 {[%clk 0:01:10.3]} 16... exf4 {[%clk
0:02:16.4]} 17. Qxf4 {[%clk 0:01:08.7]} 17... b5 {[%clk 0:02:17]} 18. e5 {[%clk
0:01:05.6]} 18... Ng4 {[%clk 0:02:15.2]} 19. Be2 {[%clk 0:00:56.7]} 19... bxa4
{[%clk 0:02:03.4]} 20. Bxg4 {[%clk 0:00:56.2]} 20... Bxg4 {[%clk 0:02:03.4]} 21.
Qf6+ {[%clk 0:00:51.5]} 21... Kh7 {[%clk 0:02:02.1]} 22. Rd4 {[%clk 0:00:40.2]}
22... a3 {[%clk 0:02:00.3]} 23. Kb1 {[%clk 0:00:17.9]} 23... axb2 {[%clk
0:01:50]} 24. Na2 {[%clk 0:00:18.4]} 24... Rad8 {[%clk 0:01:44.5]} 25. Rxg4
{[%clk 0:00:18]} 25... Rd2 {[%clk 0:01:23.9]} 26. Rg3 {[%clk 0:00:16.6]} 26...
Qd5 {[%clk 0:01:16.4]} 27. Rd3 {[%clk 0:00:16.5]} 27... Rxd3 {[%clk 0:01:14]}
28. cxd3 {[%clk 0:00:16.3]} 28... Qxd3+ {[%clk 0:01:14.3]} 29. Kxb2 {[%clk
0:00:16.4]} 29... Rb8+ {[%clk 0:01:14.2]} 30. Kc1 {[%clk 0:00:13.9]} 30... Rb1#
{[%clk 0:01:13.2]} 0-1

[Event "Early-Titled-Tuesday-Blitz-March-05-2024"]
[Site "Chess.com"]
[Date "2024.03.05"]
[Round "8"]
[White "chess123456s"]
[Black "Nuvas"]
[Result "0-1"]
[WhiteElo "2571"]
[BlackElo "2808"]
[TimeControl "180+1"]
[EndTime "9:28:59 PST"]
[Termination "Nuvas won by resignation"]

1. e4 {[%clk 0:03:00.9]} 1... e5 {[%clk 0:03:00.3]} 2. Nf3 {[%clk 0:03:01.1]}
2... Nc6 {[%clk 0:03:00.8]} 3. Bc4 {[%clk 0:03:01.2]} 3... Nf6 {[%clk
0:03:00.9]} 4. d3 {[%clk 0:03:01.7]} 4... d5 {[%clk 0:03:01.3]} 5. exd5 {[%clk
0:03:01.5]} 5... Nxd5 {[%clk 0:03:01.9]} 6. O-O {[%clk 0:03:02.2]} 6... Nb6
{[%clk 0:03:02.2]} 7. Bb3 {[%clk 0:02:59.1]} 7... Bg4 {[%clk 0:03:01.7]} 8. Re1
{[%clk 0:02:59.3]} 8... Qe7 {[%clk 0:03:01.9]} 9. Nbd2 {[%clk 0:02:55.7]} 9...
O-O-O {[%clk 0:02:58.8]} 10. h3 {[%clk 0:02:55.3]} 10... Bh5 {[%clk 0:02:59]}
11. Ne4 {[%clk 0:02:47]} 11... f6 {[%clk 0:02:55.9]} 12. Ng3 {[%clk 0:02:45]}
12... Bf7 {[%clk 0:02:47.6]} 13. Bxf7 {[%clk 0:02:28.3]} 13... Qxf7 {[%clk
0:02:48.5]} 14. a4 {[%clk 0:02:29.2]} 14... a5 {[%clk 0:02:47.8]} 15. Be3 {[%clk
0:02:29.1]} 15... Nd5 {[%clk 0:02:47.5]} 16. Nd2 {[%clk 0:02:27.1]} 16... f5
{[%clk 0:02:43.3]} 17. Bg5 {[%clk 0:02:12.1]} 17... Re8 {[%clk 0:02:41.1]} 18.
Nc4 {[%clk 0:02:06.8]} 18... f4 {[%clk 0:02:40.8]} 19. Qh5 {[%clk 0:00:42.2]}
19... g6 {[%clk 0:02:21.2]} 20. Qg4+ {[%clk 0:00:41]} 20... Kb8 {[%clk
0:02:21.6]} 21. Ne4 {[%clk 0:00:34.9]} 21... h6 {[%clk 0:02:21.6]} 22. Bh4
{[%clk 0:00:30.7]} 22... g5 {[%clk 0:02:21.9]} 23. Bxg5 {[%clk 0:00:24.3]} 23...
Rg8 {[%clk 0:02:11.5]} 24. h4 {[%clk 0:00:20.8]} 24... hxg5 {[%clk 0:02:09.1]}
25. hxg5 {[%clk 0:00:21.7]} 25... Be7 {[%clk 0:01:47.3]} 26. Qd7 {[%clk
0:00:20.7]} 26... Rd8 {[%clk 0:01:44.2]} 27. Qg4 {[%clk 0:00:20]} 27... Nf6
{[%clk 0:01:42.6]} 28. Qf5 {[%clk 0:00:17.1]} 28... Qh7 {[%clk 0:01:37.6]} 29.
Qe6 {[%clk 0:00:06]} 29... Nxe4 {[%clk 0:01:31.6]} 30. Rxe4 {[%clk 0:00:05.6]}
30... Rxg5 {[%clk 0:01:32.2]} 31. Nd2 {[%clk 0:00:03.5]} 31... Rh8 {[%clk
0:01:25.3]} 32. Kf1 {[%clk 0:00:02.9]} 32... Qh1+ {[%clk 0:01:24.9]} 33. Ke2
{[%clk 0:00:03.5]} 33... Qxa1 {[%clk 0:01:25.5]} 0-1

[Event "Early-Titled-Tuesday-Blitz-March-05-2024"]
[Site "Chess.com"]
[Date "2024.03.05"]
[Round "8"]
[White "margarita_2703"]
[Black "lluiss"]
[Result "1-0"]
[WhiteElo "2384"]
[BlackElo "2164"]
[TimeControl "180+1"]
[EndTime "9:29:02 PST"]
[Termination "margarita_2703 won on time"]

1. e4 {[%clk 0:02:53.4]} 1... c5 {[%clk 0:02:59.5]} 2. Nf3 {[%clk 0:02:47.4]}
2... d6 {[%clk 0:02:59.4]} 3. d4 {[%clk 0:02:40.2]} 3... cxd4 {[%clk 0:02:59]}
4. Qxd4 {[%clk 0:02:41.1]} 4... Nc6 {[%clk 0:02:57.8]} 5. Bb5 {[%clk 0:02:39.3]}
5... Bd7 {[%clk 0:02:58.2]} 6. Bxc6 {[%clk 0:02:38.3]} 6... Bxc6 {[%clk
0:02:59.1]} 7. Nc3 {[%clk 0:02:38.8]} 7... Nf6 {[%clk 0:02:58.1]} 8. Bg5 {[%clk
0:02:39.3]} 8... e6 {[%clk 0:02:58.6]} 9. O-O-O {[%clk 0:02:37.6]} 9... Be7
{[%clk 0:02:58.7]} 10. Qd3 {[%clk 0:02:37.5]} 10... O-O {[%clk 0:02:56.4]} 11.
Nd4 {[%clk 0:02:38.1]} 11... Rc8 {[%clk 0:02:37.8]} 12. Kb1 {[%clk 0:02:28.7]}
12... Qa5 {[%clk 0:02:33]} 13. f4 {[%clk 0:02:26.5]} 13... Rfe8 {[%clk
0:02:22.3]} 14. h4 {[%clk 0:02:24.7]} 14... Qb4 {[%clk 0:01:44.3]} 15. g4 {[%clk
0:02:17.5]} 15... Nxg4 {[%clk 0:01:27.4]} 16. Qg3 {[%clk 0:02:13]} 16... Nf6
{[%clk 0:01:19]} 17. f5 {[%clk 0:02:11.4]} 17... Nh5 {[%clk 0:01:05.5]} 18. Qf3
{[%clk 0:02:09.1]} 18... Nf6 {[%clk 0:00:59.4]} 19. h5 {[%clk 0:02:04.6]} 19...
Nxe4 {[%clk 0:00:51.3]} 20. Nxe4 {[%clk 0:02:01]} 20... Bxg5 {[%clk 0:00:47.6]}
21. Nxc6 {[%clk 0:01:58.9]} 21... Rxc6 {[%clk 0:00:38.4]} 22. Nxg5 {[%clk
0:01:55.8]} 22... Qc5 {[%clk 0:00:11.4]} 23. Rh2 {[%clk 0:01:53.1]} 23... Qxf5
{[%clk 0:00:09.1]} 24. Qxf5 {[%clk 0:01:46.8]} 24... exf5 {[%clk 0:00:10]} 25.
Rhd2 {[%clk 0:01:47.4]} 25... Rd8 {[%clk 0:00:09.9]} 26. c3 {[%clk 0:01:47.3]}
26... h6 {[%clk 0:00:10]} 27. Nf3 {[%clk 0:01:47.6]} 27... Kf8 {[%clk
0:00:10.1]} 28. Rd5 {[%clk 0:01:48]} 28... g6 {[%clk 0:00:08]} 29. Nh4 {[%clk
0:01:46.5]} 29... Kg7 {[%clk 0:00:06.5]} 30. Rg1 {[%clk 0:01:46.3]} 30... g5
{[%clk 0:00:06.8]} 31. Nxf5+ {[%clk 0:01:46.3]} 31... Kh7 {[%clk 0:00:06.9]} 32.
Re1 {[%clk 0:01:44.9]} 32... Rd7 {[%clk 0:00:05.7]} 33. a4 {[%clk 0:01:41.7]}
33... Rc5 {[%clk 0:00:06]} 34. Red1 {[%clk 0:01:41.1]} 34... Rxd5 {[%clk
0:00:04.5]} 35. Rxd5 {[%clk 0:01:42]} 35... Kg8 {[%clk 0:00:02.4]} 36. Kc2
{[%clk 0:01:38.8]} 36... Rc7 {[%clk 0:00:03.3]} 37. b3 {[%clk 0:01:38.5]} 37...
Rc5 {[%clk 0:00:02.8]} 38. Nxh6+ {[%clk 0:01:36.3]} 38... Kh7 {[%clk 0:00:02.3]}
39. Rxc5 {[%clk 0:01:34.6]} 39... dxc5 {[%clk 0:00:02.5]} 40. Nxf7 {[%clk
0:01:35]} 1-0

[Event "Early-Titled-Tuesday-Blitz-March-05-2024"]
[Site "Chess.com"]
[Date "2024.03.05"]
[Round "8"]
[White "Quattroporte300"]
[Black "MANOJ_MISHRA123"]
[Result "1-0"]
[WhiteElo "2442"]
[BlackElo "2259"]
[TimeControl "180+1"]
[EndTime "9:29:04 PST"]
[Termination "Quattroporte300 won on time"]

1. e4 {[%clk 0:02:57.4]} 1... Nf6 {[%clk 0:02:57.5]} 2. e5 {[%clk 0:02:57.5]}
2... Nd5 {[%clk 0:02:57.3]} 3. d4 {[%clk 0:02:58.1]} 3... d6 {[%clk 0:02:57.2]}
4. c4 {[%clk 0:02:57.8]} 4... Nb6 {[%clk 0:02:56.9]} 5. exd6 {[%clk 0:02:58.7]}
5... cxd6 {[%clk 0:02:56.4]} 6. Nc3 {[%clk 0:02:59.1]} 6... g6 {[%clk
0:02:56.5]} 7. Be3 {[%clk 0:02:59.8]} 7... Bg7 {[%clk 0:02:56.8]} 8. Rc1 {[%clk
0:02:59]} 8... O-O {[%clk 0:02:56.9]} 9. b3 {[%clk 0:02:59.7]} 9... Bf5 {[%clk
0:02:56.9]} 10. Nf3 {[%clk 0:02:58.9]} 10... d5 {[%clk 0:02:57]} 11. c5 {[%clk
0:02:58.4]} 11... Nc8 {[%clk 0:02:56.3]} 12. Bd3 {[%clk 0:02:57.5]} 12... Nc6
{[%clk 0:02:55.9]} 13. Bxf5 {[%clk 0:02:56.8]} 13... gxf5 {[%clk 0:02:53]} 14.
O-O {[%clk 0:02:57.4]} 14... e6 {[%clk 0:02:34.2]} 15. a3 {[%clk 0:02:56.8]}
15... N8e7 {[%clk 0:02:31]} 16. b4 {[%clk 0:02:56]} 16... a6 {[%clk 0:02:30.9]}
17. Qd3 {[%clk 0:02:52.4]} 17... Ng6 {[%clk 0:02:28.4]} 18. Rfe1 {[%clk
0:02:51.4]} 18... e5 {[%clk 0:02:02.1]} 19. dxe5 {[%clk 0:02:39.6]} 19... Ngxe5
{[%clk 0:01:34.7]} 20. Nxe5 {[%clk 0:02:30.3]} 20... Nxe5 {[%clk 0:01:35.6]} 21.
Qxf5 {[%clk 0:02:23.6]} 21... d4 {[%clk 0:01:32.3]} 22. Rcd1 {[%clk 0:02:18.4]}
22... dxe3 {[%clk 0:00:43]} 23. Rxd8 {[%clk 0:02:17.2]} 23... exf2+ {[%clk
0:00:43.1]} 24. Qxf2 {[%clk 0:02:11.5]} 24... Raxd8 {[%clk 0:00:41.5]} 25. Qg3
{[%clk 0:02:09.4]} 25... Nd3 {[%clk 0:00:37.2]} 26. Rd1 {[%clk 0:01:59]} 26...
Ne5 {[%clk 0:00:18.3]} 27. Rxd8 {[%clk 0:01:55.8]} 27... Rxd8 {[%clk 0:00:19.2]}
28. Ne4 {[%clk 0:01:51.2]} 28... Rd1+ {[%clk 0:00:18]} 29. Kf2 {[%clk
0:01:49.3]} 29... Rd3 {[%clk 0:00:12.4]} 30. Nf6+ {[%clk 0:01:42]} 30... Kf8
{[%clk 0:00:10.3]} 31. Qxe5 {[%clk 0:01:42.9]} 31... Rd2+ {[%clk 0:00:09.3]} 32.
Ke1 {[%clk 0:01:40.9]} 32... Rd8 {[%clk 0:00:05.5]} 33. Nxh7+ {[%clk 0:01:36.7]}
33... Kg8 {[%clk 0:00:04.8]} 34. Nf6+ {[%clk 0:01:37.6]} 34... Kf8 {[%clk
0:00:04.7]} 35. g4 {[%clk 0:01:35.5]} 35... b6 {[%clk 0:00:02.3]} 36. g5 {[%clk
0:01:34.9]} 36... bxc5 {[%clk 0:00:01.9]} 37. Qxc5+ {[%clk 0:01:35]} 1-0

[Event "Early-Titled-Tuesday-Blitz-March-05-2024"]
[Site "Chess.com"]
[Date "2024.03.05"]
[Round "8"]
[White "aridannie"]
[Black "mortngabriel"]
[Result "1-0"]
[WhiteElo "2448"]
[BlackElo "2525"]
[TimeControl "180+1"]
[EndTime "9:29:08 PST"]
[Termination "aridannie won on time"]

1. Nf3 {[%clk 0:03:00.5]} 1... d5 {[%clk 0:02:59.6]} 2. g3 {[%clk 0:03:00.3]}
2... Nf6 {[%clk 0:02:59.8]} 3. Bg2 {[%clk 0:03:00.5]} 3... e6 {[%clk 0:03:00.7]}
4. O-O {[%clk 0:03:00.6]} 4... Be7 {[%clk 0:03:01.4]} 5. d3 {[%clk 0:03:01.1]}
5... O-O {[%clk 0:03:02.3]} 6. Nbd2 {[%clk 0:03:01.3]} 6... a5 {[%clk
0:03:02.4]} 7. e4 {[%clk 0:03:01.3]} 7... a4 {[%clk 0:03:02.3]} 8. a3 {[%clk
0:02:59.7]} 8... c5 {[%clk 0:02:56.7]} 9. Re1 {[%clk 0:02:59.2]} 9... Nc6 {[%clk
0:02:55.5]} 10. e5 {[%clk 0:02:58.2]} 10... Nd7 {[%clk 0:02:55.4]} 11. Nf1
{[%clk 0:02:57.9]} 11... b5 {[%clk 0:02:51.7]} 12. h4 {[%clk 0:02:57]} 12... b4
{[%clk 0:02:50.2]} 13. N1h2 {[%clk 0:02:56.3]} 13... bxa3 {[%clk 0:02:48]} 14.
bxa3 {[%clk 0:02:56]} 14... Ba6 {[%clk 0:02:19]} 15. Bf4 {[%clk 0:02:54.9]}
15... Qa5 {[%clk 0:02:15.9]} 16. h5 {[%clk 0:02:53.3]} 16... h6 {[%clk 0:02:13]}
17. Ng4 {[%clk 0:02:52.5]} 17... Rfb8 {[%clk 0:02:01.7]} 18. Qc1 {[%clk
0:02:51.5]} 18... Bf8 {[%clk 0:01:56.1]} 19. Bxh6 {[%clk 0:02:46.1]} 19... Ne7
{[%clk 0:01:22.2]} 20. Bd2 {[%clk 0:02:43.2]} 20... Qb6 {[%clk 0:01:18.2]} 21.
h6 {[%clk 0:02:41.7]} 21... Nf5 {[%clk 0:01:09.5]} 22. hxg7 {[%clk 0:02:40.2]}
22... Bxg7 {[%clk 0:01:08]} 23. Nh6+ {[%clk 0:02:38.8]} 23... Nxh6 {[%clk
0:00:56.8]} 24. Bxh6 {[%clk 0:02:39.7]} 24... Qd8 {[%clk 0:00:45.7]} 25. Qf4
{[%clk 0:02:38.1]} 25... Nf8 {[%clk 0:00:43.8]} 26. Bxg7 {[%clk 0:02:37.2]}
26... Kxg7 {[%clk 0:00:43.3]} 27. Ng5 {[%clk 0:02:33.9]} 27... Ra7 {[%clk
0:00:32]} 28. Re3 {[%clk 0:02:28.3]} 28... Ng6 {[%clk 0:00:30.1]} 29. Qg4 {[%clk
0:02:25.9]} 29... Qe7 {[%clk 0:00:17.4]} 30. Rae1 {[%clk 0:02:20.9]} 30... Rf8
{[%clk 0:00:07]} 31. Rf3 {[%clk 0:02:19.1]} 31... Bb5 {[%clk 0:00:03.7]} 32. Rf6
{[%clk 0:01:52.8]} 32... Be8 {[%clk 0:00:04.1]} 33. f4 {[%clk 0:01:47]} 33...
Rh8 {[%clk 0:00:03.9]} 34. c3 {[%clk 0:01:38]} 34... Rb7 {[%clk 0:00:04.1]} 35.
f5 {[%clk 0:01:32.9]} 35... exf5 {[%clk 0:00:04.1]} 36. Qxf5 {[%clk 0:01:32.6]}
36... Rh6 {[%clk 0:00:03.9]} 37. Bxd5 {[%clk 0:01:30.8]} 37... Rb2 {[%clk
0:00:03.4]} 38. Bxf7 {[%clk 0:01:24.8]} 38... Bd7 {[%clk 0:00:01.6]} 39. Rxg6+
{[%clk 0:01:24.1]} 39... Rxg6 {[%clk 0:00:01.2]} 40. Qxg6+ {[%clk 0:01:23.9]}
1-0

[Event "Early-Titled-Tuesday-Blitz-March-05-2024"]
[Site "Chess.com"]
[Date "2024.03.05"]
[Round "8"]
[White "viviania"]
[Black "Yan_Dyomin2010"]
[Result "1-0"]
[WhiteElo "2898"]
[BlackElo "2705"]
[TimeControl "180+1"]
[EndTime "9:29:15 PST"]
[Termination "viviania won by resignation"]

1. e4 {[%clk 0:02:59.7]} 1... c5 {[%clk 0:02:59.7]} 2. Nf3 {[%clk 0:02:59.4]}
2... Nc6 {[%clk 0:02:59.7]} 3. d4 {[%clk 0:02:59.3]} 3... cxd4 {[%clk
0:03:00.6]} 4. Nxd4 {[%clk 0:02:59.6]} 4... g6 {[%clk 0:02:59.4]} 5. c4 {[%clk
0:02:59.2]} 5... Nf6 {[%clk 0:02:59]} 6. Nc3 {[%clk 0:02:58.4]} 6... Nxd4 {[%clk
0:02:59.1]} 7. Qxd4 {[%clk 0:02:57.9]} 7... d6 {[%clk 0:02:59.6]} 8. Bg5 {[%clk
0:02:53.9]} 8... Bg7 {[%clk 0:02:59.4]} 9. Qd2 {[%clk 0:02:54]} 9... Bd7 {[%clk
0:02:53.4]} 10. Rc1 {[%clk 0:02:49.6]} 10... O-O {[%clk 0:02:51.7]} 11. Bd3
{[%clk 0:02:38.4]} 11... Rc8 {[%clk 0:02:50.7]} 12. O-O {[%clk 0:02:35]} 12...
Re8 {[%clk 0:02:31]} 13. b4 {[%clk 0:02:06.8]} 13... a5 {[%clk 0:02:22.7]} 14.
a3 {[%clk 0:02:06.3]} 14... axb4 {[%clk 0:02:22]} 15. axb4 {[%clk 0:02:06.5]}
15... Bc6 {[%clk 0:01:35]} 16. Nd5 {[%clk 0:02:06.3]} 16... e6 {[%clk 0:01:17]}
17. Nxf6+ {[%clk 0:02:02.3]} 17... Bxf6 {[%clk 0:01:17.9]} 18. Bxf6 {[%clk
0:02:02.3]} 18... Qxf6 {[%clk 0:01:18.6]} 19. Qe3 {[%clk 0:01:51.4]} 19... Red8
{[%clk 0:01:13.6]} 20. f4 {[%clk 0:01:43]} 20... Qe7 {[%clk 0:01:04.3]} 21. Rfd1
{[%clk 0:01:39]} 21... Rc7 {[%clk 0:00:57]} 22. Be2 {[%clk 0:01:36.7]} 22... d5
{[%clk 0:00:53.7]} 23. cxd5 {[%clk 0:01:26]} 23... exd5 {[%clk 0:00:52.5]} 24.
b5 {[%clk 0:01:26.2]} 24... d4 {[%clk 0:00:33.8]} 25. Rxd4 {[%clk 0:01:21.9]}
25... Rxd4 {[%clk 0:00:34.3]} 26. Qxd4 {[%clk 0:01:22]} 26... Rd7 {[%clk
0:00:20.8]} 27. Qb2 {[%clk 0:01:07.1]} 27... Bxe4 {[%clk 0:00:19.7]} 28. Rc8+
{[%clk 0:01:03.2]} 28... Rd8 {[%clk 0:00:20.3]} 29. Qe5 {[%clk 0:01:03.1]} 29...
Qf8 {[%clk 0:00:18.9]} 30. Rxd8 {[%clk 0:01:01.8]} 30... Qxd8 {[%clk 0:00:19]}
31. Qxe4 {[%clk 0:01:01.9]} 31... Qb6+ {[%clk 0:00:18.2]} 32. Kf1 {[%clk
0:01:01.4]} 32... Qc7 {[%clk 0:00:18.3]} 33. h3 {[%clk 0:00:59.2]} 33... Qc1+
{[%clk 0:00:17.8]} 34. Kf2 {[%clk 0:00:59]} 34... b6 {[%clk 0:00:18.7]} 35. Qe3
{[%clk 0:00:57.9]} 35... Qc7 {[%clk 0:00:17]} 36. Qe8+ {[%clk 0:00:57.3]} 1-0

[Event "Early-Titled-Tuesday-Blitz-March-05-2024"]
[Site "Chess.com"]
[Date "2024.03.05"]
[Round "8"]
[White "KoningKobe"]
[Black "Bekkedahl"]
[Result "1-0"]
[WhiteElo "2412"]
[BlackElo "2194"]
[TimeControl "180+1"]
[EndTime "9:29:15 PST"]
[Termination "KoningKobe won by resignation"]

1. e4 {[%clk 0:02:59.8]} 1... c5 {[%clk 0:02:58.4]} 2. Nf3 {[%clk 0:02:53.1]}
2... g6 {[%clk 0:02:59]} 3. c3 {[%clk 0:02:50.6]} 3... Bg7 {[%clk 0:02:58.6]} 4.
d4 {[%clk 0:02:49.9]} 4... cxd4 {[%clk 0:02:59.5]} 5. cxd4 {[%clk 0:02:49.9]}
5... d5 {[%clk 0:03:00]} 6. e5 {[%clk 0:02:49.4]} 6... Bg4 {[%clk 0:02:58]} 7.
Nc3 {[%clk 0:02:48.4]} 7... Nh6 {[%clk 0:02:56]} 8. h3 {[%clk 0:02:47.1]} 8...
Bxf3 {[%clk 0:02:55.7]} 9. Qxf3 {[%clk 0:02:48]} 9... e6 {[%clk 0:02:52.7]} 10.
g4 {[%clk 0:02:46.1]} 10... O-O {[%clk 0:02:50.8]} 11. h4 {[%clk 0:02:32.7]}
11... Nc6 {[%clk 0:02:46.5]} 12. Be3 {[%clk 0:02:24]} 12... f6 {[%clk
0:02:31.5]} 13. exf6 {[%clk 0:02:20.7]} 13... Rxf6 {[%clk 0:02:32.1]} 14. Qg3
{[%clk 0:02:07]} 14... Rf7 {[%clk 0:02:04.4]} 15. O-O-O {[%clk 0:01:53.2]} 15...
Qa5 {[%clk 0:01:41]} 16. h5 {[%clk 0:01:50.5]} 16... Nb4 {[%clk 0:01:05.6]} 17.
hxg6 {[%clk 0:01:42.7]} 17... hxg6 {[%clk 0:01:05.2]} 18. a3 {[%clk 0:01:41.7]}
18... Rc8 {[%clk 0:01:02.5]} 19. axb4 {[%clk 0:01:38.7]} 19... Qxb4 {[%clk
0:00:39.3]} 20. Bxh6 {[%clk 0:01:33.3]} 20... Bxd4 {[%clk 0:00:31.6]} 21. Bd2
{[%clk 0:00:37.3]} 21... Qb3 {[%clk 0:00:18.5]} 22. Qd3 {[%clk 0:00:32.5]} 22...
e5 {[%clk 0:00:11.1]} 23. Qxg6+ {[%clk 0:00:31]} 23... Rg7 {[%clk 0:00:11]} 24.
Qe6+ {[%clk 0:00:31.1]} 1-0

[Event "Early-Titled-Tuesday-Blitz-March-05-2024"]
[Site "Chess.com"]
[Date "2024.03.05"]
[Round "8"]
[White "salzikis"]
[Black "viktorskliarov"]
[Result "1-0"]
[WhiteElo "2440"]
[BlackElo "2569"]
[TimeControl "180+1"]
[EndTime "9:29:23 PST"]
[Termination "salzikis won by resignation"]

1. e4 {[%clk 0:02:57.1]} 1... c5 {[%clk 0:02:56.2]} 2. Nf3 {[%clk 0:02:55.3]}
2... Nc6 {[%clk 0:02:56]} 3. Bb5 {[%clk 0:02:55.5]} 3... e6 {[%clk 0:02:54.8]}
4. c3 {[%clk 0:02:53.1]} 4... Nge7 {[%clk 0:02:54.1]} 5. O-O {[%clk 0:02:53.7]}
5... a6 {[%clk 0:02:54]} 6. Be2 {[%clk 0:02:52.5]} 6... d5 {[%clk 0:02:52.2]} 7.
exd5 {[%clk 0:02:52.5]} 7... Nxd5 {[%clk 0:02:51.7]} 8. d4 {[%clk 0:02:52.4]}
8... cxd4 {[%clk 0:02:45.5]} 9. Nxd4 {[%clk 0:02:52.4]} 9... Bd7 {[%clk
0:02:45.7]} 10. Bf3 {[%clk 0:02:52]} 10... Be7 {[%clk 0:02:31.5]} 11. a3 {[%clk
0:02:50.8]} 11... O-O {[%clk 0:02:19.9]} 12. Nxc6 {[%clk 0:02:50.7]} 12... Bxc6
{[%clk 0:02:08]} 13. c4 {[%clk 0:02:43.3]} 13... Nf6 {[%clk 0:02:08]} 14. Bxc6
{[%clk 0:02:42.5]} 14... bxc6 {[%clk 0:02:07.5]} 15. Nc3 {[%clk 0:02:40.1]}
15... Qc7 {[%clk 0:01:50.1]} 16. Qf3 {[%clk 0:02:24.5]} 16... Qb7 {[%clk
0:01:37.8]} 17. b4 {[%clk 0:02:15.7]} 17... Qc8 {[%clk 0:01:08.5]} 18. Be3
{[%clk 0:01:51.9]} 18... e5 {[%clk 0:00:59.2]} 19. Rfc1 {[%clk 0:01:45.7]} 19...
Qe6 {[%clk 0:00:55.4]} 20. Ne4 {[%clk 0:01:45.6]} 20... Nxe4 {[%clk 0:00:53.7]}
21. Qxe4 {[%clk 0:01:45.9]} 21... f5 {[%clk 0:00:54.4]} 22. Qc2 {[%clk
0:01:45.3]} 22... f4 {[%clk 0:00:50.4]} 23. Bd2 {[%clk 0:01:45.1]} 23... f3
{[%clk 0:00:46.9]} 24. Qe4 {[%clk 0:01:40.6]} 24... fxg2 {[%clk 0:00:45.9]} 25.
Be3 {[%clk 0:01:32.7]} 25... Rad8 {[%clk 0:00:25.4]} 26. a4 {[%clk 0:01:29.6]}
26... Bxb4 {[%clk 0:00:23.2]} 27. c5 {[%clk 0:01:30.3]} 27... Bd2 {[%clk
0:00:18.8]} 28. Rd1 {[%clk 0:01:22.2]} 28... Bxe3 {[%clk 0:00:18.5]} 29. Qxe3
{[%clk 0:01:22.6]} 29... Qf5 {[%clk 0:00:10.9]} 30. Rd6 {[%clk 0:01:18.4]} 30...
Rxd6 {[%clk 0:00:07.7]} 31. cxd6 {[%clk 0:01:18.6]} 31... h5 {[%clk 0:00:08.1]}
32. Rd1 {[%clk 0:01:16.5]} 32... h4 {[%clk 0:00:07.5]} 33. h3 {[%clk 0:01:17.2]}
33... Rd8 {[%clk 0:00:06]} 34. Qb3+ {[%clk 0:01:08.8]} 34... Kh7 {[%clk
0:00:04.7]} 35. Qc4 {[%clk 0:01:05.6]} 35... Qg6 {[%clk 0:00:03.6]} 36. Qxh4+
{[%clk 0:01:05.4]} 36... Kg8 {[%clk 0:00:03.1]} 37. Qxd8+ {[%clk 0:01:06.2]}
37... Kh7 {[%clk 0:00:03.7]} 38. Qh4+ {[%clk 0:01:06.3]} 38... Qh6 {[%clk
0:00:04.2]} 39. Qxh6+ {[%clk 0:01:05.4]} 1-0